[Event "Early-Titled-Tuesday-Blitz-October-10-2023"]
[Site "Chess.com"]
[Date "2023.10.10"]
[Round "7"]
[White "remi04"]
[Black "viktorskliarov"]
[Result "1-0"]
[WhiteElo "2863"]
[BlackElo "2647"]
[TimeControl "180+1"]
[EndTime "9:18:05 PDT"]
[Termination "remi04 won on time"]

1. e4 {[%clk 0:03:00.9]} 1... c5 {[%clk 0:02:58.2]} 2. Nf3 {[%clk 0:03:01.2]}
2... Nc6 {[%clk 0:02:56.9]} 3. d4 {[%clk 0:03:01.2]} 3... cxd4 {[%clk
0:02:54.6]} 4. Nxd4 {[%clk 0:03:02.1]} 4... Nf6 {[%clk 0:02:54.8]} 5. Nc3 {[%clk
0:03:02.4]} 5... e5 {[%clk 0:02:55.1]} 6. Ndb5 {[%clk 0:03:02.7]} 6... d6 {[%clk
0:02:55.6]} 7. Bg5 {[%clk 0:03:03.1]} 7... a6 {[%clk 0:02:55.9]} 8. Na3 {[%clk
0:03:03.7]} 8... b5 {[%clk 0:02:56.6]} 9. Nd5 {[%clk 0:03:04.3]} 9... Be7 {[%clk
0:02:57.1]} 10. Bxf6 {[%clk 0:03:05]} 10... Bxf6 {[%clk 0:02:58]} 11. c3 {[%clk
0:03:05.7]} 11... O-O {[%clk 0:02:58.1]} 12. Nc2 {[%clk 0:03:06]} 12... Rb8
{[%clk 0:02:57.4]} 13. g3 {[%clk 0:03:01.9]} 13... Bg5 {[%clk 0:02:55.5]} 14. h4
{[%clk 0:02:59.8]} 14... Bh6 {[%clk 0:02:55.4]} 15. Bh3 {[%clk 0:02:59]} 15...
Bb7 {[%clk 0:02:49]} 16. Qd3 {[%clk 0:02:35.6]} 16... Ne7 {[%clk 0:02:42.6]} 17.
Nxe7+ {[%clk 0:02:28.2]} 17... Qxe7 {[%clk 0:02:42.1]} 18. O-O {[%clk
0:02:27.8]} 18... d5 {[%clk 0:02:08.2]} 19. exd5 {[%clk 0:02:24.1]} 19... e4
{[%clk 0:02:08.3]} 20. Qd4 {[%clk 0:02:23.6]} 20... Rbd8 {[%clk 0:01:44.4]} 21.
Ne3 {[%clk 0:02:17.5]} 21... Bxe3 {[%clk 0:01:43.8]} 22. Qxe3 {[%clk 0:02:18.4]}
22... Rxd5 {[%clk 0:01:40.9]} 23. Bg2 {[%clk 0:02:12.9]} 23... Rd3 {[%clk
0:01:33.2]} 24. Qa7 {[%clk 0:02:12.7]} 24... Qc7 {[%clk 0:00:58.6]} 25. Rad1
{[%clk 0:01:51.4]} 25... Ra8 {[%clk 0:00:53.5]} 26. Qxb7 {[%clk 0:01:40.2]}
26... Qxb7 {[%clk 0:00:51.7]} 27. Rxd3 {[%clk 0:01:41.1]} 27... Qe7 {[%clk
0:00:41.1]} 28. Rd4 {[%clk 0:01:20.9]} 28... f5 {[%clk 0:00:26.2]} 29. Rfd1
{[%clk 0:01:19.9]} 29... Re8 {[%clk 0:00:12.8]} 30. Rd7 {[%clk 0:01:16.5]} 30...
Qe5 {[%clk 0:00:12.7]} 31. R1d5 {[%clk 0:01:13.1]} 31... Qe6 {[%clk 0:00:06.6]}
32. R7d6 {[%clk 0:00:58.9]} 32... Qe7 {[%clk 0:00:05.9]} 33. Rd7 {[%clk
0:00:28.6]} 33... Qe6 {[%clk 0:00:06.1]} 34. Rd1 {[%clk 0:00:18.3]} 34... g6
{[%clk 0:00:03.4]} 35. Rb7 {[%clk 0:00:14.6]} 35... Re7 {[%clk 0:00:03.4]} 36.
Rb8+ {[%clk 0:00:12.2]} 36... Kg7 {[%clk 0:00:03.6]} 37. Re1 {[%clk 0:00:11.2]}
37... Qd6 {[%clk 0:00:03]} 38. Rc8 {[%clk 0:00:11]} 38... Qd2 {[%clk 0:00:02.8]}
39. Re3 {[%clk 0:00:11.2]} 39... Qxb2 {[%clk 0:00:02.7]} 40. Rc6 {[%clk
0:00:10.8]} 40... Qxa2 {[%clk 0:00:02.6]} 41. h5 {[%clk 0:00:11.2]} 41... Qb1+
{[%clk 0:00:02.3]} 42. Kh2 {[%clk 0:00:11]} 42... a5 {[%clk 0:00:02.8]} 43. Rb6
{[%clk 0:00:08.4]} 43... a4 {[%clk 0:00:02.3]} 44. c4 {[%clk 0:00:08.9]} 44...
b4 {[%clk 0:00:02.5]} 45. c5 {[%clk 0:00:08.6]} 45... b3 {[%clk 0:00:03]} 46. c6
{[%clk 0:00:08.8]} 46... Rc7 {[%clk 0:00:03.4]} 47. Rb7 {[%clk 0:00:09]} 47...
Kh6 {[%clk 0:00:02.3]} 48. Rxc7 {[%clk 0:00:09.2]} 48... b2 {[%clk 0:00:02.9]}
49. Rb7 {[%clk 0:00:08.9]} 49... Qc1 {[%clk 0:00:03.3]} 50. c7 {[%clk
0:00:08.6]} 50... a3 {[%clk 0:00:03.2]} 51. Rxa3 {[%clk 0:00:07.6]} 51... b1=Q
{[%clk 0:00:03.7]} 52. Rxb1 {[%clk 0:00:07.1]} 52... Qxc7 {[%clk 0:00:04.4]} 53.
Re3 {[%clk 0:00:07.2]} 53... Kxh5 {[%clk 0:00:04.5]} 54. Rh1 {[%clk 0:00:07.3]}
54... Kg5 {[%clk 0:00:05]} 55. Rhe1 {[%clk 0:00:07.9]} 55... h5 {[%clk
0:00:05.5]} 56. Kg1 {[%clk 0:00:07.8]} 56... h4 {[%clk 0:00:06]} 57. gxh4+
{[%clk 0:00:08]} 57... Kxh4 {[%clk 0:00:06.6]} 58. R3e2 {[%clk 0:00:07.8]} 58...
Kg5 {[%clk 0:00:06.7]} 59. Rd2 {[%clk 0:00:07.9]} 59... Qc3 {[%clk 0:00:06.6]}
60. Red1 {[%clk 0:00:08.4]} 60... Kf4 {[%clk 0:00:06.6]} 61. Rd6 {[%clk
0:00:08.2]} 61... g5 {[%clk 0:00:06.8]} 62. R6d4 {[%clk 0:00:08]} 62... g4
{[%clk 0:00:06.6]} 63. Rd5 {[%clk 0:00:08.2]} 63... g3 {[%clk 0:00:06.8]} 64.
fxg3+ {[%clk 0:00:08.6]} 64... Kxg3 {[%clk 0:00:06.4]} 65. Rxf5 {[%clk
0:00:07.4]} 65... Qe3+ {[%clk 0:00:06.6]} 66. Kf1 {[%clk 0:00:07]} 66... Kg4
{[%clk 0:00:06.6]} 67. Rdd5 {[%clk 0:00:06.3]} 67... Qc1+ {[%clk 0:00:06.6]} 68.
Kf2 {[%clk 0:00:06.8]} 68... Qc2+ {[%clk 0:00:06.1]} 69. Kg1 {[%clk 0:00:07.3]}
69... Qc1+ {[%clk 0:00:06.7]} 70. Kh2 {[%clk 0:00:07.9]} 70... Qh6+ {[%clk
0:00:06.6]} 71. Kg1 {[%clk 0:00:08.5]} 71... Qc1+ {[%clk 0:00:07.2]} 72. Rf1
{[%clk 0:00:08.8]} 72... Qe3+ {[%clk 0:00:07.4]} 73. Kh1 {[%clk 0:00:09.1]}
73... Qh6+ {[%clk 0:00:07.7]} 74. Kg1 {[%clk 0:00:09.3]} 74... Qe3+ {[%clk
0:00:08.4]} 75. Rf2 {[%clk 0:00:09.6]} 75... Qc1+ {[%clk 0:00:08.5]} 76. Bf1
{[%clk 0:00:09.5]} 76... Kg3 {[%clk 0:00:07.7]} 77. Rg2+ {[%clk 0:00:07.8]}
77... Kf4 {[%clk 0:00:07.1]} 78. Rdd2 {[%clk 0:00:07.4]} 78... e3 {[%clk
0:00:07.1]} 79. Rde2 {[%clk 0:00:07.9]} 79... Qa1 {[%clk 0:00:07]} 80. Rh2
{[%clk 0:00:08.2]} 80... Qc3 {[%clk 0:00:06]} 81. Rh3 {[%clk 0:00:08.3]} 81...
Qc1 {[%clk 0:00:04.6]} 82. Rh4+ {[%clk 0:00:08]} 82... Kg3 {[%clk 0:00:04.8]}
83. Rh3+ {[%clk 0:00:08.6]} 83... Kf4 {[%clk 0:00:05.3]} 84. Kg2 {[%clk
0:00:09]} 84... Qc5 {[%clk 0:00:04.8]} 85. Rf3+ {[%clk 0:00:08.5]} 85... Ke4
{[%clk 0:00:04.6]} 86. Rg3 {[%clk 0:00:08.8]} 86... Kf4 {[%clk 0:00:04.8]} 87.
Kh2 {[%clk 0:00:08.4]} 87... Qh5+ {[%clk 0:00:04.5]} 88. Rh3 {[%clk 0:00:07.6]}
88... Qg4 {[%clk 0:00:04.6]} 89. Rexe3 {[%clk 0:00:07.3]} 89... Qg5 {[%clk
0:00:04]} 90. Reg3 {[%clk 0:00:07.5]} 90... Qe5 {[%clk 0:00:03.5]} 91. Bg2
{[%clk 0:00:08]} 91... Qc7 {[%clk 0:00:03.2]} 92. Rh4+ {[%clk 0:00:08.4]} 92...
Kf5 {[%clk 0:00:03.9]} 93. Kh3 {[%clk 0:00:09]} 93... Kf6 {[%clk 0:00:04.4]} 94.
Rgg4 {[%clk 0:00:08.7]} 94... Qc3+ {[%clk 0:00:04.7]} 95. Kh2 {[%clk 0:00:09.2]}
95... Qe1 {[%clk 0:00:05.1]} 96. Rf4+ {[%clk 0:00:09.2]} 96... Kg5 {[%clk
0:00:05.7]} 97. Rhg4+ {[%clk 0:00:09.7]} 97... Kh5 {[%clk 0:00:06.2]} 98. Rg3
{[%clk 0:00:10.2]} 98... Qc1 {[%clk 0:00:04.6]} 99. Rf8 {[%clk 0:00:09.5]} 99...
Qc7 {[%clk 0:00:03.2]} 100. Rh8+ {[%clk 0:00:09]} 1-0

[Event "Early-Titled-Tuesday-Blitz-October-10-2023"]
[Site "Chess.com"]
[Date "2023.10.10"]
[Round "7"]
[White "Alex_Sahakyan2006"]
[Black "TigrVShlyape"]
[Result "0-1"]
[WhiteElo "2714"]
[BlackElo "2936"]
[TimeControl "180+1"]
[EndTime "9:19:42 PDT"]
[Termination "TigrVShlyape won by resignation"]

1. e4 {[%clk 0:03:00.9]} 1... c5 {[%clk 0:02:59.4]} 2. Nc3 {[%clk 0:02:59.5]}
2... e6 {[%clk 0:02:59.3]} 3. Nf3 {[%clk 0:02:57.9]} 3... a6 {[%clk 0:02:59]} 4.
g3 {[%clk 0:02:56.2]} 4... b5 {[%clk 0:02:58.8]} 5. Bg2 {[%clk 0:02:56.5]} 5...
Bb7 {[%clk 0:02:59.4]} 6. d3 {[%clk 0:02:52.7]} 6... Ne7 {[%clk 0:02:56.4]} 7.
O-O {[%clk 0:02:52.9]} 7... Nbc6 {[%clk 0:02:51.5]} 8. Be3 {[%clk 0:02:50.9]}
8... Ng6 {[%clk 0:02:49.8]} 9. d4 {[%clk 0:02:39.7]} 9... cxd4 {[%clk
0:02:48.9]} 10. Nxd4 {[%clk 0:02:40.6]} 10... Bb4 {[%clk 0:02:38.9]} 11. Nxc6
{[%clk 0:02:25.7]} 11... dxc6 {[%clk 0:02:37.8]} 12. Qh5 {[%clk 0:02:20.4]}
12... e5 {[%clk 0:02:12.9]} 13. Rad1 {[%clk 0:02:15.1]} 13... Qe7 {[%clk
0:02:12.4]} 14. Bh3 {[%clk 0:02:03.4]} 14... Bc8 {[%clk 0:02:09]} 15. Bxc8
{[%clk 0:02:03]} 15... Rxc8 {[%clk 0:02:08.6]} 16. Qf5 {[%clk 0:01:59.7]} 16...
Qe6 {[%clk 0:01:47.2]} 17. Qxe6+ {[%clk 0:01:58.8]} 17... fxe6 {[%clk
0:01:46.8]} 18. Nb1 {[%clk 0:01:59.2]} 18... Rd8 {[%clk 0:01:38.6]} 19. a3
{[%clk 0:01:53.9]} 19... Be7 {[%clk 0:01:34.7]} 20. Bb6 {[%clk 0:01:45.9]} 20...
Rb8 {[%clk 0:01:30.9]} 21. Ba5 {[%clk 0:01:43.5]} 21... Rb7 {[%clk 0:01:29.2]}
22. Rd3 {[%clk 0:01:27.8]} 22... O-O {[%clk 0:01:28]} 23. Rfd1 {[%clk
0:01:26.9]} 23... Bc5 {[%clk 0:01:18.3]} 24. Be1 {[%clk 0:01:19.4]} 24... Bd4
{[%clk 0:01:15.8]} 25. c3 {[%clk 0:01:12.8]} 25... Bc5 {[%clk 0:01:14.3]} 26.
Rd7 {[%clk 0:01:09.9]} 26... Rxd7 {[%clk 0:01:08.3]} 27. Rxd7 {[%clk 0:01:10.8]}
27... Rf7 {[%clk 0:01:08.6]} 28. Rd3 {[%clk 0:01:03.6]} 28... Nf8 {[%clk
0:01:08.1]} 29. Nd2 {[%clk 0:01:02.3]} 29... Rd7 {[%clk 0:01:08.7]} 30. Rxd7
{[%clk 0:00:59]} 30... Nxd7 {[%clk 0:01:08.5]} 31. Kf1 {[%clk 0:00:59.7]} 31...
Kf7 {[%clk 0:01:07.4]} 32. Ke2 {[%clk 0:00:59.6]} 32... a5 {[%clk 0:01:01.1]}
33. b4 {[%clk 0:00:56.3]} 33... axb4 {[%clk 0:01:01]} 34. axb4 {[%clk
0:00:57.2]} 34... Bd6 {[%clk 0:01:00.3]} 35. f3 {[%clk 0:00:57]} 35... Nb6
{[%clk 0:00:59]} 36. Bf2 {[%clk 0:00:56.9]} 36... Na4 {[%clk 0:00:58.4]} 37. Kd3
{[%clk 0:00:57]} 37... Nb2+ {[%clk 0:00:58.7]} 38. Kc2 {[%clk 0:00:57.4]} 38...
Nc4 {[%clk 0:00:59.1]} 39. Nxc4 {[%clk 0:00:53.4]} 39... bxc4 {[%clk 0:00:58.9]}
40. Kb2 {[%clk 0:00:54.1]} 40... Ke7 {[%clk 0:00:58.9]} 41. Ka3 {[%clk
0:00:54.3]} 41... Kd7 {[%clk 0:00:58.9]} 42. Ka4 {[%clk 0:00:54.5]} 42... Kc7
{[%clk 0:00:59.4]} 43. b5 {[%clk 0:00:47.6]} 43... Kb7 {[%clk 0:00:57.9]} 44.
Ka5 {[%clk 0:00:45.8]} 44... Be7 {[%clk 0:00:56.8]} 45. Be3 {[%clk 0:00:34.5]}
45... h5 {[%clk 0:00:55.3]} 46. h3 {[%clk 0:00:31.1]} 46... g6 {[%clk
0:00:54.8]} 47. g4 {[%clk 0:00:31.2]} 47... Ba3 {[%clk 0:00:53.4]} 48. bxc6+
{[%clk 0:00:19.9]} 48... Kxc6 {[%clk 0:00:53]} 49. Ka6 {[%clk 0:00:20.6]} 49...
Bd6 {[%clk 0:00:49.5]} 50. Ka7 {[%clk 0:00:19.6]} 50... Bc7 {[%clk 0:00:45.2]}
51. Ka6 {[%clk 0:00:18.9]} 51... Bd8 {[%clk 0:00:42.5]} 52. Bc1 {[%clk 0:00:18]}
52... Bb6 {[%clk 0:00:40.8]} 53. Ba3 {[%clk 0:00:17.3]} 53... Bd8 {[%clk
0:00:34.3]} 54. Bf8 {[%clk 0:00:16.7]} 54... Bc7 {[%clk 0:00:31]} 55. Bg7 {[%clk
0:00:16.7]} 55... Bd6 {[%clk 0:00:20.3]} 56. Ka5 {[%clk 0:00:16.8]} 56... Kc5
{[%clk 0:00:20.4]} 57. Bh6 {[%clk 0:00:16.1]} 57... Kc6 {[%clk 0:00:20.4]} 58.
Be3 {[%clk 0:00:14.5]} 58... Be7 {[%clk 0:00:20]} 59. Ka4 {[%clk 0:00:12.6]}
59... Bd6 {[%clk 0:00:20]} 60. Bc1 {[%clk 0:00:12.6]} 60... Bc5 {[%clk
0:00:12.6]} 61. Ka5 {[%clk 0:00:12.4]} 61... Bf2 {[%clk 0:00:11.3]} 62. Kb4
{[%clk 0:00:11.9]} 62... Bc5+ {[%clk 0:00:10.8]} 63. Kxc4 {[%clk 0:00:12.4]}
63... Bd6 {[%clk 0:00:11]} 64. Be3 {[%clk 0:00:12.5]} 64... Be7 {[%clk 0:00:11]}
65. Kb3 {[%clk 0:00:12.5]} 65... Kb5 {[%clk 0:00:10.6]} 66. c4+ {[%clk
0:00:12.6]} 66... Kc6 {[%clk 0:00:11.1]} 67. Kc3 {[%clk 0:00:13.1]} 67... Bd6
{[%clk 0:00:10.9]} 68. Kd3 {[%clk 0:00:12.4]} 68... Be7 {[%clk 0:00:11.2]} 69.
Bh6 {[%clk 0:00:12.6]} 69... Bd6 {[%clk 0:00:10.4]} 70. Bg7 {[%clk 0:00:12.5]}
70... Kc5 {[%clk 0:00:10.6]} 71. Kc3 {[%clk 0:00:12.1]} 71... Kc6 {[%clk
0:00:10.7]} 72. Bh6 {[%clk 0:00:09]} 72... Kc5 {[%clk 0:00:10.4]} 73. Be3+
{[%clk 0:00:09.4]} 73... Kc6 {[%clk 0:00:10.9]} 74. Kd3 {[%clk 0:00:09.5]} 74...
Be7 {[%clk 0:00:11.3]} 75. f4 {[%clk 0:00:09.1]} 75... exf4 {[%clk 0:00:11]} 76.
Bxf4 {[%clk 0:00:10]} 76... Ba3 {[%clk 0:00:10.8]} 77. gxh5 {[%clk 0:00:09.7]}
77... gxh5 {[%clk 0:00:10.6]} 78. Be3 {[%clk 0:00:10.4]} 78... Be7 {[%clk
0:00:09.9]} 79. Bd4 {[%clk 0:00:10.8]} 79... Bg5 {[%clk 0:00:10]} 80. Ke2 {[%clk
0:00:10.8]} 80... Kd6 {[%clk 0:00:09.9]} 81. Kf3 {[%clk 0:00:11.3]} 81... Kc6
{[%clk 0:00:10.3]} 82. Be3 {[%clk 0:00:09.8]} 82... Bf6 {[%clk 0:00:10.6]} 83.
Kf4 {[%clk 0:00:08.7]} 83... Kd7 {[%clk 0:00:10.8]} 84. e5 {[%clk 0:00:08.9]}
84... Be7 {[%clk 0:00:10.7]} 85. Bf2 {[%clk 0:00:07.5]} 85... Kc6 {[%clk
0:00:10.9]} 86. Bd4 {[%clk 0:00:07.1]} 86... Bh4 {[%clk 0:00:10.6]} 87. Ke4
{[%clk 0:00:07.3]} 87... Kc7 {[%clk 0:00:10.4]} 88. Bc5 {[%clk 0:00:06.5]} 88...
Kc6 {[%clk 0:00:10.6]} 89. Bf8 {[%clk 0:00:07.1]} 89... Bg5 {[%clk 0:00:10.4]}
90. Bg7 {[%clk 0:00:07]} 90... Kb6 {[%clk 0:00:10.3]} 91. Bf6 {[%clk 0:00:06.9]}
91... Bc1 {[%clk 0:00:10]} 92. h4 {[%clk 0:00:06.7]} 92... Kc5 {[%clk
0:00:10.1]} 93. Kd3 {[%clk 0:00:06.8]} 93... Bf4 {[%clk 0:00:10.6]} 94. Be7+
{[%clk 0:00:06.7]} 94... Kc6 {[%clk 0:00:10.6]} 95. Ke4 {[%clk 0:00:07]} 95...
Bc1 {[%clk 0:00:10.6]} 96. Bg5 {[%clk 0:00:07.3]} 96... Bb2 {[%clk 0:00:09.7]}
97. Be3 {[%clk 0:00:05.5]} 97... Ba3 {[%clk 0:00:10]} 98. Kf4 {[%clk 0:00:05.3]}
98... Be7 {[%clk 0:00:10.2]} 99. Kg3 {[%clk 0:00:05.8]} 99... Bd8 {[%clk
0:00:09.5]} 100. Bf2 {[%clk 0:00:06.1]} 100... Be7 {[%clk 0:00:09.5]} 101. Kf3
{[%clk 0:00:06.8]} 101... Bd8 {[%clk 0:00:09.7]} 102. Ke4 {[%clk 0:00:07.5]}
102... Be7 {[%clk 0:00:10.2]} 103. Kf4 {[%clk 0:00:06.8]} 103... Bd8 {[%clk
0:00:10.6]} 104. Kg3 {[%clk 0:00:07.2]} 104... Be7 {[%clk 0:00:11.1]} 105. Be3
{[%clk 0:00:07.8]} 105... Bd8 {[%clk 0:00:10.6]} 106. Bg5 {[%clk 0:00:08.5]}
106... Ba5 {[%clk 0:00:10.4]} 107. Be7 {[%clk 0:00:09]} 107... Bd2 {[%clk
0:00:09.9]} 108. Kf3 {[%clk 0:00:09]} 108... Bc1 {[%clk 0:00:09.1]} 109. Bf6
{[%clk 0:00:08.3]} 109... Bd2 {[%clk 0:00:09]} 110. Ke4 {[%clk 0:00:08.5]}
110... Bc1 {[%clk 0:00:09.2]} 111. Kd3 {[%clk 0:00:08.8]} 111... Bf4 {[%clk
0:00:08.9]} 112. Kd4 {[%clk 0:00:09.3]} 112... Bc1 {[%clk 0:00:08.6]} 113. c5
{[%clk 0:00:09.9]} 113... Ba3 {[%clk 0:00:07.6]} 114. Kc4 {[%clk 0:00:10.4]}
114... Bxc5 {[%clk 0:00:07.4]} 115. Bg5 {[%clk 0:00:10.3]} 115... Bf2 {[%clk
0:00:06.9]} 116. Bf6 {[%clk 0:00:10.7]} 116... Bg3 {[%clk 0:00:06.5]} 117. Kd4
{[%clk 0:00:11.3]} 117... Kb5 {[%clk 0:00:06.8]} 118. Ke4 {[%clk 0:00:11]}
118... Kc4 {[%clk 0:00:07.1]} 119. Be7 {[%clk 0:00:10.9]} 119... Be1 {[%clk
0:00:06.9]} 120. Bf6 {[%clk 0:00:11.1]} 120... Bd2 {[%clk 0:00:07.2]} 121. Bg5
{[%clk 0:00:10.9]} 121... Bc3 {[%clk 0:00:06.4]} 122. Be3 {[%clk 0:00:10.9]}
122... Bb4 {[%clk 0:00:06.4]} 123. Bg5 {[%clk 0:00:10.1]} 123... Kc3 {[%clk
0:00:06.3]} 124. Be3 {[%clk 0:00:09.6]} 124... Kc4 {[%clk 0:00:06.6]} 125. Bd4
{[%clk 0:00:09.1]} 125... Be7 {[%clk 0:00:06.7]} 126. Bf2 {[%clk 0:00:09.7]}
126... Kc3 {[%clk 0:00:07.1]} 127. Bg3 {[%clk 0:00:08.1]} 127... Kd2 {[%clk
0:00:07.2]} 128. Kf3 {[%clk 0:00:08.2]} 128... Kd3 {[%clk 0:00:07.3]} 129. Bf2
{[%clk 0:00:07.8]} 129... Bd8 {[%clk 0:00:06.5]} 130. Bg3 {[%clk 0:00:07.4]}
130... Kd4 {[%clk 0:00:06.9]} 131. Kf4 {[%clk 0:00:07.8]} 131... Kd5 {[%clk
0:00:07.3]} 132. Be1 {[%clk 0:00:07]} 132... Be7 {[%clk 0:00:07.3]} 133. Bg3
{[%clk 0:00:05.9]} 133... Kd4 {[%clk 0:00:07]} 134. Bf2+ {[%clk 0:00:05.9]}
134... Kd3 {[%clk 0:00:07.6]} 135. Bg3 {[%clk 0:00:06.4]} 135... Ke2 {[%clk
0:00:07.5]} 136. Ke4 {[%clk 0:00:07.1]} 136... Bc5 {[%clk 0:00:06]} 137. Bf4
{[%clk 0:00:06.9]} 137... Bf2 {[%clk 0:00:05.7]} 138. Bg5 {[%clk 0:00:07.2]}
138... Bg3 {[%clk 0:00:06.1]} 139. Bd8 {[%clk 0:00:06.1]} 139... Kf2 {[%clk
0:00:06.1]} 140. Bf6 {[%clk 0:00:04.5]} 140... Kg2 {[%clk 0:00:06.3]} 141. Kd4
{[%clk 0:00:04.8]} 141... Kf3 {[%clk 0:00:06.4]} 142. Kc5 {[%clk 0:00:04.8]}
142... Ke4 {[%clk 0:00:06.7]} 143. Kd6 {[%clk 0:00:05.1]} 143... Kf5 {[%clk
0:00:07.1]} 144. Bg7 {[%clk 0:00:01.6]} 144... Bxh4 {[%clk 0:00:07.2]} 145. Kc5
{[%clk 0:00:02.3]} 145... Bf2+ {[%clk 0:00:07.3]} 146. Kc4 {[%clk 0:00:02.7]}
146... Ke4 {[%clk 0:00:08]} 147. Bf6 {[%clk 0:00:02.2]} 147... h4 {[%clk
0:00:08.2]} 0-1

[Event "Early-Titled-Tuesday-Blitz-October-10-2023"]
[Site "Chess.com"]
[Date "2023.10.10"]
[Round "8"]
[White "Jojo_898"]
[Black "vladgoncharov"]
[Result "0-1"]
[WhiteElo "2392"]
[BlackElo "2521"]
[TimeControl "180+1"]
[EndTime "9:22:00 PDT"]
[Termination "vladgoncharov won by resignation"]

1. e4 {[%clk 0:03:00.9]} 1... e6 {[%clk 0:02:59.3]} 2. d4 {[%clk 0:03:00.8]}
2... d5 {[%clk 0:02:56]} 3. Nc3 {[%clk 0:03:00.4]} 3... Bb4 {[%clk 0:02:55.3]}
4. exd5 {[%clk 0:02:58.4]} 4... exd5 {[%clk 0:02:54.9]} 5. Bd3 {[%clk
0:02:58.6]} 5... Ne7 {[%clk 0:02:51.2]} 6. Nf3 {[%clk 0:02:57.7]} 6... c6 {[%clk
0:02:48.4]} 7. O-O {[%clk 0:02:57.7]} 7... Bg4 {[%clk 0:02:46.6]} 8. h3 {[%clk
0:02:55.8]} 8... Bh5 {[%clk 0:02:46.6]} 9. g4 {[%clk 0:02:53.7]} 9... Bg6 {[%clk
0:02:46.4]} 10. Bg5 {[%clk 0:02:51.9]} 10... f6 {[%clk 0:02:42.7]} 11. Bf4
{[%clk 0:02:45.6]} 11... O-O {[%clk 0:02:36.2]} 12. Ne2 {[%clk 0:02:42.3]} 12...
Na6 {[%clk 0:02:27.7]} 13. Ng3 {[%clk 0:02:37.9]} 13... Nc7 {[%clk 0:02:26.8]}
14. c3 {[%clk 0:02:34.4]} 14... Bd6 {[%clk 0:02:26.4]} 15. Bxd6 {[%clk
0:02:29.6]} 15... Qxd6 {[%clk 0:02:25.9]} 16. Bxg6 {[%clk 0:02:23.4]} 16... hxg6
{[%clk 0:02:22.7]} 17. Nf5 {[%clk 0:02:23.1]} 17... gxf5 {[%clk 0:02:22]} 0-1

[Event "Early-Titled-Tuesday-Blitz-October-10-2023"]
[Site "Chess.com"]
[Date "2023.10.10"]
[Round "8"]
[White "elprimo2012mortis"]
[Black "BocharovD"]
[Result "1-0"]
[WhiteElo "2695"]
[BlackElo "2781"]
[TimeControl "180+1"]
[EndTime "9:22:40 PDT"]
[Termination "elprimo2012mortis won by checkmate"]

1. e4 {[%clk 0:03:00.9]} 1... c5 {[%clk 0:02:55]} 2. Nc3 {[%clk 0:03:01]} 2...
d6 {[%clk 0:02:53.9]} 3. d4 {[%clk 0:03:01.7]} 3... cxd4 {[%clk 0:02:43.9]} 4.
Qxd4 {[%clk 0:03:02.6]} 4... Nc6 {[%clk 0:02:44.4]} 5. Qd2 {[%clk 0:03:03.2]}
5... g6 {[%clk 0:02:41.1]} 6. b3 {[%clk 0:03:03.8]} 6... Bh6 {[%clk 0:02:40.7]}
7. f4 {[%clk 0:03:04.3]} 7... e5 {[%clk 0:02:38.7]} 8. Nb5 {[%clk 0:03:04.4]}
8... Bxf4 {[%clk 0:02:34.7]} 9. Qxd6 {[%clk 0:03:03.5]} 9... Qxd6 {[%clk
0:02:30.4]} 10. Nxd6+ {[%clk 0:03:04.4]} 10... Kf8 {[%clk 0:02:30.7]} 11. Ba3
{[%clk 0:02:50.9]} 11... Kg7 {[%clk 0:02:30.2]} 12. Ne8+ {[%clk 0:02:50]} 12...
Kh6 {[%clk 0:02:29.8]} 13. Bf8+ {[%clk 0:02:50.3]} 13... Kg5 {[%clk 0:02:27.8]}
14. Nf3+ {[%clk 0:02:38.5]} 14... Kg4 {[%clk 0:02:24.1]} 15. Be2 {[%clk
0:02:18.5]} 15... Be6 {[%clk 0:02:14.2]} 16. Nxe5+ {[%clk 0:01:52.5]} 16... Kg5
{[%clk 0:02:12.1]} 17. h4# {[%clk 0:01:52.9]} 1-0

[Event "Early-Titled-Tuesday-Blitz-October-10-2023"]
[Site "Chess.com"]
[Date "2023.10.10"]
[Round "8"]
[White "JiiHart"]
[Black "UK_23"]
[Result "0-1"]
[WhiteElo "2184"]
[BlackElo "2369"]
[TimeControl "180+1"]
[EndTime "9:24:04 PDT"]
[Termination "UK_23 won by resignation"]

1. e4 {[%clk 0:03:00.9]} 1... e5 {[%clk 0:03:00.1]} 2. Nf3 {[%clk 0:03:00.4]}
2... Nc6 {[%clk 0:03:00.5]} 3. Bc4 {[%clk 0:03:00.2]} 3... Nf6 {[%clk
0:03:00.6]} 4. d3 {[%clk 0:03:00.2]} 4... Be7 {[%clk 0:03:00.8]} 5. c3 {[%clk
0:03:00.1]} 5... O-O {[%clk 0:03:01.2]} 6. Bg5 {[%clk 0:02:58.9]} 6... h6 {[%clk
0:02:52.8]} 7. Bh4 {[%clk 0:02:58.3]} 7... d6 {[%clk 0:02:51.9]} 8. h3 {[%clk
0:02:57.5]} 8... Nh5 {[%clk 0:02:51.2]} 9. Bxe7 {[%clk 0:02:15.2]} 9... Qxe7
{[%clk 0:02:52.1]} 10. g3 {[%clk 0:01:57.2]} 10... Na5 {[%clk 0:02:44.9]} 11.
Nbd2 {[%clk 0:01:37.5]} 11... Nxc4 {[%clk 0:02:40.3]} 12. Nxc4 {[%clk 0:01:37]}
12... g6 {[%clk 0:02:37]} 13. Ne3 {[%clk 0:01:30.5]} 13... c6 {[%clk 0:02:36.9]}
14. Qd2 {[%clk 0:01:24.5]} 14... Kg7 {[%clk 0:02:32.7]} 15. O-O-O {[%clk
0:01:22.9]} 15... a5 {[%clk 0:02:31.2]} 16. Nh4 {[%clk 0:01:05.1]} 16... a4
{[%clk 0:02:27]} 17. Ng4 {[%clk 0:00:43.5]} 17... Rh8 {[%clk 0:02:23.6]} 18.
Rhg1 {[%clk 0:00:39.1]} 18... Be6 {[%clk 0:02:22.1]} 19. f4 {[%clk 0:00:35.4]}
19... exf4 {[%clk 0:02:20.8]} 20. Qxf4 {[%clk 0:00:28.1]} 20... Nxf4 {[%clk
0:02:20]} 0-1

[Event "Early-Titled-Tuesday-Blitz-October-10-2023"]
[Site "Chess.com"]
[Date "2023.10.10"]
[Round "8"]
[White "secrethawk1"]
[Black "Shuvalov"]
[Result "1/2-1/2"]
[WhiteElo "2286"]
[BlackElo "2474"]
[TimeControl "180+1"]
[EndTime "9:24:09 PDT"]
[Termination "Game drawn by repetition"]

1. d4 {[%clk 0:03:00.9]} 1... Nf6 {[%clk 0:02:59.6]} 2. Bf4 {[%clk 0:03:00.6]}
2... d5 {[%clk 0:02:58.4]} 3. e3 {[%clk 0:03:00.8]} 3... e6 {[%clk 0:02:58.4]}
4. c4 {[%clk 0:02:59.2]} 4... Be7 {[%clk 0:02:51.9]} 5. Nc3 {[%clk 0:02:57.6]}
5... O-O {[%clk 0:02:51]} 6. Nf3 {[%clk 0:02:55.8]} 6... c5 {[%clk 0:02:37.5]}
7. Bd3 {[%clk 0:02:54.2]} 7... cxd4 {[%clk 0:02:35.9]} 8. exd4 {[%clk
0:02:52.1]} 8... Nc6 {[%clk 0:02:35.4]} 9. O-O {[%clk 0:02:51.1]} 9... Nb4
{[%clk 0:02:33.6]} 10. Be2 {[%clk 0:02:47.8]} 10... dxc4 {[%clk 0:02:32.9]} 11.
Bxc4 {[%clk 0:02:47]} 11... Bd7 {[%clk 0:02:24.2]} 12. Ne5 {[%clk 0:02:43.7]}
12... Bc6 {[%clk 0:02:23.4]} 13. Nxc6 {[%clk 0:02:44]} 13... Nxc6 {[%clk
0:02:23.7]} 14. d5 {[%clk 0:02:44.4]} 14... exd5 {[%clk 0:02:23.1]} 15. Nxd5
{[%clk 0:02:44.8]} 15... Nxd5 {[%clk 0:02:18.8]} 16. Qxd5 {[%clk 0:02:43.7]}
16... Bf6 {[%clk 0:02:16.9]} 17. Bd6 {[%clk 0:02:37.3]} 17... Be7 {[%clk
0:02:16.3]} 18. Bg3 {[%clk 0:02:29.4]} 18... Bf6 {[%clk 0:02:13.8]} 19. Rab1
{[%clk 0:02:25.2]} 19... Qxd5 {[%clk 0:02:12.2]} 20. Bxd5 {[%clk 0:02:26.1]}
20... Rfd8 {[%clk 0:02:09.3]} 21. Rfd1 {[%clk 0:02:24.8]} 21... Bd4 {[%clk
0:01:23]} 22. Bf3 {[%clk 0:02:08.7]} 22... Rd7 {[%clk 0:01:20]} 23. Bg4 {[%clk
0:01:47.3]} 23... Rd5 {[%clk 0:01:18.3]} 24. Bf3 {[%clk 0:01:44.2]} 24... Rd7
{[%clk 0:01:18.5]} 25. Bg4 {[%clk 0:01:36.3]} 25... Rd5 {[%clk 0:01:18.5]} 26.
Bf3 {[%clk 0:01:36.5]} 26... Rd7 {[%clk 0:01:18.3]} 1/2-1/2